[Event "Titled Tuesday Blitz July 27 2021"]
[White "LEGENYA1998"]
[Black "Agibileg, Uurtsaikh"]
[BlackFideId "4901606"]
[WhiteElo "2392"]
[BlackElo "2117"]
[Result "0-1"]
[Round "06"]
[TimeControl "180+1"]
[Date "2021.07.27"]
[WhiteClock "0:00:04"]
[BlackClock "0:00:13"]

1. d4 {[%clk 0:03:00]}  Nf6 {[%clk 0:02:59]} 2. Nc3 {[%clk 0:02:57]}  g6 {[%clk 0:03:00]} 3. Bf4 {[%clk 0:02:57]}  d5 {[%clk 0:03:00]} 4. Nf3 {[%clk 0:02:57]}  Bg7 {[%clk 0:02:59]} 5. Qd2 {[%clk 0:02:58]}  O-O {[%clk 0:03:00]} 6. h4 {[%clk 0:02:57]}  h5 {[%clk 0:02:55]} 7. e3 {[%clk 0:02:57]}  c5 {[%clk 0:02:54]} 8. O-O-O {[%clk 0:02:57]}  Qa5 {[%clk 0:02:42]} 9. Kb1 {[%clk 0:02:56]}  Nc6 {[%clk 0:02:38]} 10. dxc5 {[%clk 0:02:57]}  Qxc5 {[%clk 0:02:34]} 11. Ne5 {[%clk 0:02:49]}  Bf5 {[%clk 0:02:30]} 12. Bd3 {[%clk 0:02:48]}  Ne4 {[%clk 0:02:23]} 13. Bxe4 {[%clk 0:02:31]}  dxe4 {[%clk 0:02:23]} 14. Qd5 {[%clk 0:02:22]}  Qb6 {[%clk 0:02:12]} 15. Nc4 {[%clk 0:02:01]}  Qa6 {[%clk 0:02:02]} 16. Qb5 {[%clk 0:02:00]}  Qxb5 {[%clk 0:01:39]} 17. Nxb5 {[%clk 0:01:58]}  a6 {[%clk 0:01:39]} 18. Nc7 {[%clk 0:01:55]}  Rad8 {[%clk 0:01:34]} 19. c3 {[%clk 0:01:50]}  Bg4 {[%clk 0:01:16]} 20. Rd5 {[%clk 0:01:33]}  Rxd5 {[%clk 0:00:58]} 21. Nxd5 {[%clk 0:01:33]}  Rd8 {[%clk 0:00:58]} 22. Ndb6 {[%clk 0:01:29]}  Be2 {[%clk 0:00:51]} 23. Re1 {[%clk 0:01:23]}  Bd3+ {[%clk 0:00:50]} 24. Kc1 {[%clk 0:01:24]}  e5 {[%clk 0:00:49]} 25. Bg3 {[%clk 0:01:20]}  f5 {[%clk 0:00:49]} 26. b4 {[%clk 0:01:04]}  Kf7 {[%clk 0:00:48]} 27. a4 {[%clk 0:00:58]}  Ke6 {[%clk 0:00:48]} 28. Nb2 {[%clk 0:00:51]}  Ne7 {[%clk 0:00:37]} 29. Rd1 {[%clk 0:00:46]}  Bh6 {[%clk 0:00:32]} 30. Nxd3 {[%clk 0:00:18]}  exd3 {[%clk 0:00:33]} 31. Kd2 {[%clk 0:00:18]}  f4 {[%clk 0:00:28]} 32. Bh2 {[%clk 0:00:16]}  Nf5 {[%clk 0:00:27]} 33. exf4 {[%clk 0:00:13]}  exf4 {[%clk 0:00:27]} 34. f3 {[%clk 0:00:14]}  Nxh4 {[%clk 0:00:25]} 35. Rg1 {[%clk 0:00:13]}  g5 {[%clk 0:00:19]} 36. Nc4 {[%clk 0:00:13]}  g4 {[%clk 0:00:19]} 37. fxg4 {[%clk 0:00:10]}  f3+ {[%clk 0:00:18]} 38. Kd1 {[%clk 0:00:10]}  hxg4 {[%clk 0:00:15]} 39. gxf3 {[%clk 0:00:08]}  gxf3 {[%clk 0:00:14]} 40. Bg3 {[%clk 0:00:07]}  Nf5 {[%clk 0:00:14]} 41. Bf2 {[%clk 0:00:08]}  Kf6 {[%clk 0:00:14]} 42. Nd2 {[%clk 0:00:07]}  Re8 {[%clk 0:00:13]} 43. Nxf3 {[%clk 0:00:07]}  Re2 {[%clk 0:00:13]} 44. Nd4 {[%clk 0:00:04]}  Rxf2 {[%clk 0:00:13]} 0-1


[Site "https://www.chess.com"]

[Event "Titled Tuesday Blitz July 27 2021"]
[White "Lazavik, Denis"]
[Black "Shkapenko, Pavel"]
[WhiteFideId "13515110"]
[BlackFideId "4151933"]
[WhiteElo "2436"]
[BlackElo "2386"]
[Result "1/2-1/2"]
[Round "06"]
[TimeControl "180+1"]
[Date "2021.07.27"]
[WhiteClock "0:00:06"]
[BlackClock "0:00:09"]

1. d4 {[%clk 0:03:00]}  Nf6 {[%clk 0:02:59]} 2. c4 {[%clk 0:03:01]}  e6 {[%clk 0:03:00]} 3. Nf3 {[%clk 0:03:01]}  Bb4+ {[%clk 0:03:00]} 4. Bd2 {[%clk 0:03:01]}  Qe7 {[%clk 0:03:01]} 5. g3 {[%clk 0:03:00]}  Nc6 {[%clk 0:03:01]} 6. Nc3 {[%clk 0:02:55]}  Bxc3 {[%clk 0:03:00]} 7. Bxc3 {[%clk 0:02:56]}  Ne4 {[%clk 0:02:59]} 8. Qc2 {[%clk 0:02:56]}  Nxc3 {[%clk 0:02:56]} 9. Qxc3 {[%clk 0:02:57]}  Qb4 {[%clk 0:02:56]} 10. Kd2 {[%clk 0:02:58]}  a5 {[%clk 0:02:36]} 11. Bg2 {[%clk 0:02:50]}  d6 {[%clk 0:02:30]} 12. b3 {[%clk 0:02:11]}  e5 {[%clk 0:02:25]} 13. a3 {[%clk 0:01:59]}  Qxc3+ {[%clk 0:02:03]} 14. Kxc3 {[%clk 0:01:57]}  Bf5 {[%clk 0:01:46]} 15. dxe5 {[%clk 0:01:42]}  dxe5 {[%clk 0:01:42]} 16. Nd2 {[%clk 0:01:34]}  Ke7 {[%clk 0:01:10]} 17. Bxc6 {[%clk 0:01:32]}  bxc6 {[%clk 0:01:11]} 18. b4 {[%clk 0:01:32]}  Ra7 {[%clk 0:01:01]} 19. Nb3 {[%clk 0:01:31]}  axb4+ {[%clk 0:01:01]} 20. axb4 {[%clk 0:01:31]}  Rha8 {[%clk 0:01:01]} 21. Na5 {[%clk 0:01:19]}  Bd7 {[%clk 0:01:00]} 22. c5 {[%clk 0:01:17]}  Ke6 {[%clk 0:00:56]} 23. Rhd1 {[%clk 0:01:14]}  f6 {[%clk 0:00:41]} 24. Rd2 {[%clk 0:01:12]}  Be8 {[%clk 0:00:40]} 25. Rad1 {[%clk 0:01:11]}  Rb8 {[%clk 0:00:40]} 26. e4 {[%clk 0:00:48]}  Raa8 {[%clk 0:00:38]} 27. f4 {[%clk 0:00:46]}  exf4 {[%clk 0:00:28]} 28. gxf4 {[%clk 0:00:45]}  g6 {[%clk 0:00:29]} 29. h4 {[%clk 0:00:37]}  Ke7 {[%clk 0:00:28]} 30. Re1 {[%clk 0:00:32]}  Rd8 {[%clk 0:00:24]} 31. Rxd8 {[%clk 0:00:29]}  Rxd8 {[%clk 0:00:24]} 32. Nb3 {[%clk 0:00:20]}  Ra8 {[%clk 0:00:21]} 33. Na5 {[%clk 0:00:17]}  Rd8 {[%clk 0:00:21]} 34. Ra1 {[%clk 0:00:15]}  Ra8 {[%clk 0:00:20]} 35. Ra2 {[%clk 0:00:14]}  Ke6 {[%clk 0:00:19]} 36. Ra3 {[%clk 0:00:09]}  Ke7 {[%clk 0:00:17]} 37. Ra1 {[%clk 0:00:09]}  Ke6 {[%clk 0:00:17]} 38. Rd1 {[%clk 0:00:09]}  Ke7 {[%clk 0:00:17]} 39. Rd4 {[%clk 0:00:05]}  Ke6 {[%clk 0:00:17]} 40. Rd2 {[%clk 0:00:05]}  Ke7 {[%clk 0:00:17]} 41. Re2 {[%clk 0:00:05]}  Ke6 {[%clk 0:00:17]} 42. Rg2 {[%clk 0:00:05]}  Ke7 {[%clk 0:00:17]} 43. h5 {[%clk 0:00:03]}  Ke6 {[%clk 0:00:16]} 44. h6 {[%clk 0:00:04]}  Ke7 {[%clk 0:00:16]} 45. Rd2 {[%clk 0:00:03]}  Rd8 {[%clk 0:00:14]} 46. Rxd8 {[%clk 0:00:03]}  Kxd8 {[%clk 0:00:15]} 47. Kd4 {[%clk 0:00:04]}  Ke7 {[%clk 0:00:15]} 48. e5 {[%clk 0:00:04]}  Ke6 {[%clk 0:00:15]} 49. exf6 {[%clk 0:00:03]}  Kxf6 {[%clk 0:00:16]} 50. Ke4 {[%clk 0:00:04]}  g5 {[%clk 0:00:16]} 51. Nc4 {[%clk 0:00:03]}  Bg6+ {[%clk 0:00:14]} 52. Ke3 {[%clk 0:00:03]}  Kf5 {[%clk 0:00:11]} 53. fxg5 {[%clk 0:00:03]}  Kxg5 {[%clk 0:00:11]} 54. Ne5 {[%clk 0:00:04]}  Be8 {[%clk 0:00:12]} 55. Kf3 {[%clk 0:00:03]}  Kxh6 {[%clk 0:00:12]} 56. Kf4 {[%clk 0:00:04]}  Kg7 {[%clk 0:00:12]} 57. Nf3 {[%clk 0:00:04]}  Kf6 {[%clk 0:00:12]} 58. Nd4 {[%clk 0:00:04]}  Bd7 {[%clk 0:00:11]} 59. Nf3 {[%clk 0:00:04]}  h6 {[%clk 0:00:11]} 60. Nd4 {[%clk 0:00:04]}  h5 {[%clk 0:00:11]} 61. Nf3 {[%clk 0:00:03]}  Ke6 {[%clk 0:00:11]} 62. Kg5 {[%clk 0:00:03]}  Kd5 {[%clk 0:00:12]} 63. Kxh5 {[%clk 0:00:03]}  Ke4 {[%clk 0:00:11]} 64. Ng5+ {[%clk 0:00:02]}  Kd4 {[%clk 0:00:12]} 65. Kg6 {[%clk 0:00:02]}  Kc4 {[%clk 0:00:12]} 66. Kf6 {[%clk 0:00:02]}  Kxb4 {[%clk 0:00:12]} 67. Ke5 {[%clk 0:00:02]}  Kxc5 {[%clk 0:00:12]} 68. Ke4 {[%clk 0:00:03]}  Kd6 {[%clk 0:00:11]} 69. Kd4 {[%clk 0:00:03]}  c5+ {[%clk 0:00:11]} 70. Kc3 {[%clk 0:00:04]}  Bc6 {[%clk 0:00:11]} 71. Nh3 {[%clk 0:00:04]}  Be4 {[%clk 0:00:10]} 72. Nf2 {[%clk 0:00:05]}  Bf5 {[%clk 0:00:10]} 73. Nd1 {[%clk 0:00:06]}  Kd5 {[%clk 0:00:09]} 74. Ne3+ {[%clk 0:00:07]}  Ke5 {[%clk 0:00:09]} 75. Nc4+ {[%clk 0:00:06]} 1/2-1/2


[Site "https://www.chess.com"]

[Event "Titled Tuesday Blitz July 27 2021"]
[White "Leenhouts, Koen"]
[Black "Ismagilov, Damir"]
[WhiteFideId "1008439"]
[BlackFideId "34199982"]
[WhiteElo "2409"]
[BlackElo "2075"]
[Result "0-1"]
[Round "06"]
[TimeControl "180+1"]
[Date "2021.07.27"]
[WhiteClock "0:00:06"]
[BlackClock "0:00:35"]

1. d4 {[%clk 0:02:45]}  d5 {[%clk 0:02:59]} 2. c4 {[%clk 0:02:45]}  dxc4 {[%clk 0:03:00]} 3. e3 {[%clk 0:02:45]}  Nf6 {[%clk 0:02:59]} 4. Bxc4 {[%clk 0:02:44]}  e6 {[%clk 0:03:00]} 5. Nf3 {[%clk 0:02:45]}  c5 {[%clk 0:03:00]} 6. O-O {[%clk 0:02:44]}  a6 {[%clk 0:03:00]} 7. Bb3 {[%clk 0:02:44]}  Nc6 {[%clk 0:02:59]} 8. dxc5 {[%clk 0:02:29]}  Bxc5 {[%clk 0:02:58]} 9. Qxd8+ {[%clk 0:02:24]}  Kxd8 {[%clk 0:02:57]} 10. Rd1+ {[%clk 0:02:21]}  Ke7 {[%clk 0:02:57]} 11. Bd2 {[%clk 0:02:19]}  Ne4 {[%clk 0:02:49]} 12. Be1 {[%clk 0:02:19]}  b6 {[%clk 0:02:45]} 13. Nc3 {[%clk 0:02:18]}  Nxc3 {[%clk 0:02:42]} 14. Bxc3 {[%clk 0:02:19]}  f6 {[%clk 0:02:43]} 15. Rac1 {[%clk 0:02:09]}  Bb7 {[%clk 0:02:42]} 16. Ba4 {[%clk 0:02:01]}  Rhd8 {[%clk 0:02:33]} 17. b4 {[%clk 0:01:48]}  Rxd1+ {[%clk 0:02:11]} 18. Rxd1 {[%clk 0:01:30]}  Bd6 {[%clk 0:02:11]} 19. a3 {[%clk 0:01:29]}  Rc8 {[%clk 0:02:07]} 20. Bb2 {[%clk 0:01:23]}  b5 {[%clk 0:02:05]} 21. Bb3 {[%clk 0:01:23]}  a5 {[%clk 0:01:53]} 22. Nd4 {[%clk 0:00:28]}  Nxd4 {[%clk 0:01:51]} 23. Bxd4 {[%clk 0:00:28]}  axb4 {[%clk 0:01:52]} 24. axb4 {[%clk 0:00:29]}  Bxb4 {[%clk 0:01:52]} 25. h4 {[%clk 0:00:28]}  Bc3 {[%clk 0:01:36]} 26. Bb6 {[%clk 0:00:25]}  Be5 {[%clk 0:01:32]} 27. f4 {[%clk 0:00:23]}  Bd6 {[%clk 0:01:32]} 28. Bd4 {[%clk 0:00:16]}  Bc5 {[%clk 0:01:30]} 29. Kf2 {[%clk 0:00:15]}  Bxd4 {[%clk 0:01:29]} 30. Rxd4 {[%clk 0:00:15]}  Rc3 {[%clk 0:01:27]} 31. Rb4 {[%clk 0:00:15]}  Bc6 {[%clk 0:01:28]} 32. Bd1 {[%clk 0:00:13]}  Rc4 {[%clk 0:01:26]} 33. Rb2 {[%clk 0:00:12]}  Rc1 {[%clk 0:01:25]} 34. Bf3 {[%clk 0:00:11]}  Kd6 {[%clk 0:01:22]} 35. Bxc6 {[%clk 0:00:09]}  Kxc6 {[%clk 0:01:23]} 36. h5 {[%clk 0:00:08]}  h6 {[%clk 0:01:23]} 37. g4 {[%clk 0:00:07]}  Kc5 {[%clk 0:01:22]} 38. Ra2 {[%clk 0:00:08]}  b4 {[%clk 0:01:17]} 39. Ra7 {[%clk 0:00:07]}  Kb6 {[%clk 0:01:09]} 40. Rxg7 {[%clk 0:00:06]}  b3 {[%clk 0:01:08]} 41. Rg8 {[%clk 0:00:07]}  Rc7 {[%clk 0:01:07]} 42. Rb8+ {[%clk 0:00:05]}  Rb7 {[%clk 0:01:06]} 43. Rd8 {[%clk 0:00:05]}  b2 {[%clk 0:01:05]} 44. Rd1 {[%clk 0:00:06]}  Kc5 {[%clk 0:01:06]} 45. Rb1 {[%clk 0:00:06]}  Kc4 {[%clk 0:01:06]} 46. g5 {[%clk 0:00:06]}  fxg5 {[%clk 0:01:05]} 47. fxg5 {[%clk 0:00:07]}  hxg5 {[%clk 0:01:06]} 48. Kf3 {[%clk 0:00:08]}  Kc3 {[%clk 0:01:06]} 49. Kg4 {[%clk 0:00:08]}  Kc2 {[%clk 0:00:54]} 50. Rh1 {[%clk 0:00:08]}  b1=Q {[%clk 0:00:45]} 51. Rxb1 {[%clk 0:00:08]}  Kxb1 {[%clk 0:00:45]} 52. Kxg5 {[%clk 0:00:08]}  Kc2 {[%clk 0:00:44]} 53. e4 {[%clk 0:00:04]}  Kd3 {[%clk 0:00:43]} 54. e5 {[%clk 0:00:05]}  Kd4 {[%clk 0:00:42]} 55. Kf6 {[%clk 0:00:06]}  Kd5 {[%clk 0:00:42]} 56. h6 {[%clk 0:00:05]}  Rh7 {[%clk 0:00:35]} 57. Kg6 {[%clk 0:00:05]}  Rxh6+ {[%clk 0:00:35]} 58. Kxh6 {[%clk 0:00:06]} 0-1


[Site "https://www.chess.com"]

[Event "Titled Tuesday Blitz July 27 2021"]
[White "Leve, Nitai"]
[Black "Sadovsky, Artem"]
[WhiteFideId "2006898"]
[BlackFideId "4155840"]
[WhiteElo "2144"]
[BlackElo "2442"]
[Result "0-1"]
[Round "06"]
[TimeControl "180+1"]
[Date "2021.07.27"]
[WhiteClock "0:00:08"]
[BlackClock "0:00:14"]

1. e4 {[%clk 0:03:00]}  g6 {[%clk 0:03:00]} 2. d4 {[%clk 0:02:58]}  Bg7 {[%clk 0:03:00]} 3. Nc3 {[%clk 0:02:58]}  c6 {[%clk 0:03:00]} 4. a4 {[%clk 0:02:55]}  d5 {[%clk 0:02:59]} 5. exd5 {[%clk 0:02:55]}  cxd5 {[%clk 0:02:59]} 6. Nf3 {[%clk 0:02:55]}  Nc6 {[%clk 0:02:58]} 7. Bf4 {[%clk 0:02:56]}  Bg4 {[%clk 0:02:57]} 8. Be2 {[%clk 0:02:45]}  a6 {[%clk 0:02:40]} 9. Ne5 {[%clk 0:02:08]}  Bxe2 {[%clk 0:02:35]} 10. Nxc6 {[%clk 0:02:07]}  Bxd1 {[%clk 0:02:04]} 11. Nxd8 {[%clk 0:02:07]}  Kxd8 {[%clk 0:01:02]} 12. Rxd1 {[%clk 0:02:02]}  e6 {[%clk 0:01:03]} 13. a5 {[%clk 0:01:53]}  Rc8 {[%clk 0:01:03]} 14. O-O {[%clk 0:00:56]}  Rc4 {[%clk 0:01:00]} 15. Be5 {[%clk 0:00:26]}  Bxe5 {[%clk 0:00:45]} 16. dxe5 {[%clk 0:00:27]}  Ne7 {[%clk 0:00:45]} 17. Rd3 {[%clk 0:00:21]}  Nc6 {[%clk 0:00:44]} 18. b3 {[%clk 0:00:20]}  Rc5 {[%clk 0:00:25]} 19. Ne4 {[%clk 0:00:20]}  Rxa5 {[%clk 0:00:25]} 20. Nd6 {[%clk 0:00:20]}  Nxe5 {[%clk 0:00:25]} 21. Re3 {[%clk 0:00:18]}  Kc7 {[%clk 0:00:21]} 22. Rxe5 {[%clk 0:00:08]}  Kxd6 {[%clk 0:00:19]} 23. Re2 {[%clk 0:00:09]}  Rc8 {[%clk 0:00:19]} 24. f4 {[%clk 0:00:08]}  Ra2 {[%clk 0:00:18]} 25. Rc1 {[%clk 0:00:08]}  Rc3 {[%clk 0:00:18]} 26. Kf2 {[%clk 0:00:08]}  b5 {[%clk 0:00:17]} 27. g3 {[%clk 0:00:07]}  a5 {[%clk 0:00:17]} 28. Ke1 {[%clk 0:00:07]}  Kc5 {[%clk 0:00:14]} 29. Kd2 {[%clk 0:00:08]}  Rxb3 {[%clk 0:00:14]} 0-1


[Site "https://www.chess.com"]

[Event "Titled Tuesday Blitz July 27 2021"]
[White "Liyanage, Ranindu Dilshan"]
[Black "Altman, Joshua"]
[WhiteFideId "9915834"]
[BlackFideId "426210"]
[WhiteElo "1839"]
[BlackElo "1945"]
[Result "1-0"]
[Round "06"]
[TimeControl "180+1"]
[Date "2021.07.27"]
[WhiteClock "0:00:37"]
[BlackClock "0:00:16"]

1. c4 {[%clk 0:03:00]}  e5 {[%clk 0:02:59]} 2. Nc3 {[%clk 0:03:00]}  Nc6 {[%clk 0:02:58]} 3. Nf3 {[%clk 0:02:59]}  Nf6 {[%clk 0:02:57]} 4. e4 {[%clk 0:02:58]}  Bb4 {[%clk 0:02:53]} 5. d3 {[%clk 0:02:52]}  h6 {[%clk 0:02:48]} 6. a3 {[%clk 0:02:48]}  Bxc3+ {[%clk 0:02:45]} 7. bxc3 {[%clk 0:02:49]}  d6 {[%clk 0:02:45]} 8. Be2 {[%clk 0:02:43]}  O-O {[%clk 0:02:44]} 9. h3 {[%clk 0:02:43]}  b6 {[%clk 0:02:42]} 10. g4 {[%clk 0:02:43]}  Be6 {[%clk 0:02:21]} 11. g5 {[%clk 0:02:39]}  hxg5 {[%clk 0:02:21]} 12. Bxg5 {[%clk 0:02:40]}  Re8 {[%clk 0:02:16]} 13. Qd2 {[%clk 0:02:25]}  Kf8 {[%clk 0:02:12]} 14. h4 {[%clk 0:02:20]}  Ke7 {[%clk 0:01:58]} 15. d4 {[%clk 0:02:11]}  Na5 {[%clk 0:01:39]} 16. d5 {[%clk 0:02:09]}  Nb3 {[%clk 0:01:37]} 17. Qd1 {[%clk 0:02:08]}  Nxa1 {[%clk 0:01:34]} 18. dxe6 {[%clk 0:02:08]}  fxe6 {[%clk 0:01:34]} 19. Qxa1 {[%clk 0:02:08]}  Kd7 {[%clk 0:01:34]} 20. c5 {[%clk 0:02:04]}  bxc5 {[%clk 0:01:30]} 21. Qd1 {[%clk 0:02:03]}  c6 {[%clk 0:01:02]} 22. Nxe5+ {[%clk 0:01:55]}  Kc7 {[%clk 0:01:03]} 23. Nc4 {[%clk 0:01:55]}  Qd7 {[%clk 0:00:58]} 24. Qa4 {[%clk 0:01:51]}  Reb8 {[%clk 0:00:48]} 25. Nd2 {[%clk 0:01:24]}  Rb2 {[%clk 0:00:40]} 26. Qa5+ {[%clk 0:01:18]}  Kb7 {[%clk 0:00:25]} 27. Ba6+ {[%clk 0:01:14]}  Kb8 {[%clk 0:00:25]} 28. O-O {[%clk 0:00:50]}  Qc7 {[%clk 0:00:25]} 29. Qa4 {[%clk 0:00:44]}  Qb6 {[%clk 0:00:25]} 30. Nc4 {[%clk 0:00:39]}  Nxe4 {[%clk 0:00:16]} 31. Nxb6 {[%clk 0:00:37]} 1-0


[Site "https://www.chess.com"]

[Event "Titled Tuesday Blitz July 27 2021"]
[White "Maltsevskaya, Aleksandra"]
[Black "Seo, Jung Min"]
[WhiteFideId "24174041"]
[BlackFideId "1734687"]
[WhiteElo "2225"]
[BlackElo "2486"]
[Result "1-0"]
[Round "06"]
[TimeControl "180+1"]
[Date "2021.07.27"]
[WhiteClock "0:00:32"]
[BlackClock "0:01:49"]

1. e4 {[%clk 0:02:51]}  e5 {[%clk 0:02:59]} 2. Nf3 {[%clk 0:02:50]}  Nc6 {[%clk 0:03:00]} 3. Bb5 {[%clk 0:02:50]}  Nf6 {[%clk 0:02:58]} 4. d3 {[%clk 0:02:48]}  Bc5 {[%clk 0:02:57]} 5. O-O {[%clk 0:02:45]}  Nd4 {[%clk 0:02:57]} 6. Nxd4 {[%clk 0:02:45]}  Bxd4 {[%clk 0:02:57]} 7. c3 {[%clk 0:02:45]}  Bb6 {[%clk 0:02:58]} 8. a4 {[%clk 0:02:44]}  c6 {[%clk 0:02:54]} 9. Bc4 {[%clk 0:02:43]}  O-O {[%clk 0:02:54]} 10. Bg5 {[%clk 0:02:38]}  h6 {[%clk 0:02:53]} 11. Bh4 {[%clk 0:02:37]}  g5 {[%clk 0:02:53]} 12. Bg3 {[%clk 0:02:38]}  d5 {[%clk 0:02:50]} 13. exd5 {[%clk 0:02:37]}  cxd5 {[%clk 0:02:49]} 14. Bb3 {[%clk 0:02:36]}  Bc7 {[%clk 0:02:46]} 15. Nd2 {[%clk 0:02:34]}  Bg4 {[%clk 0:02:45]} 16. Nf3 {[%clk 0:02:17]}  Nh5 {[%clk 0:02:44]} 17. h3 {[%clk 0:01:37]}  Nxg3 {[%clk 0:02:41]} 18. fxg3 {[%clk 0:01:38]}  Be6 {[%clk 0:02:42]} 19. d4 {[%clk 0:01:30]}  e4 {[%clk 0:02:41]} 20. Ne5 {[%clk 0:01:17]}  f6 {[%clk 0:02:41]} 21. Qh5 {[%clk 0:01:16]}  Qe7 {[%clk 0:02:23]} 22. Ng6 {[%clk 0:01:04]}  Qf7 {[%clk 0:02:22]} 23. Qxh6 {[%clk 0:01:04]}  Qg7 {[%clk 0:02:19]} 24. Qxg7+ {[%clk 0:01:01]}  Kxg7 {[%clk 0:02:15]} 25. Nxf8 {[%clk 0:01:02]}  Rxf8 {[%clk 0:02:16]} 26. g4 {[%clk 0:00:59]}  Bf4 {[%clk 0:02:16]} 27. Kf2 {[%clk 0:00:55]}  f5 {[%clk 0:02:08]} 28. g3 {[%clk 0:00:38]}  Bd6 {[%clk 0:01:54]} 29. gxf5 {[%clk 0:00:37]}  Bxf5 {[%clk 0:01:54]} 30. Kg2 {[%clk 0:00:35]}  e3 {[%clk 0:01:49]} 31. Bxd5 {[%clk 0:00:32]} 1-0


[Site "https://www.chess.com"]

[Event "Titled Tuesday Blitz July 27 2021"]
[White "Martinez Alcantara, Jose Eduardo"]
[Black "Damjanovic, Vladimir"]
[WhiteFideId "3805662"]
[BlackFideId "903795"]
[WhiteElo "2690"]
[BlackElo "2374"]
[Result "1-0"]
[Round "06"]
[TimeControl "180+1"]
[Date "2021.07.27"]
[WhiteClock "0:00:55"]
[BlackClock "0:00:02"]

1. e4 {[%clk 0:03:00]}  c6 {[%clk 0:02:58]} 2. Nf3 {[%clk 0:02:56]}  d5 {[%clk 0:02:58]} 3. d3 {[%clk 0:02:57]}  dxe4 {[%clk 0:02:53]} 4. dxe4 {[%clk 0:02:57]}  Qxd1+ {[%clk 0:02:54]} 5. Kxd1 {[%clk 0:02:58]}  Nf6 {[%clk 0:02:53]} 6. Bd3 {[%clk 0:02:57]}  Bg4 {[%clk 0:02:51]} 7. Nd2 {[%clk 0:02:52]}  Nbd7 {[%clk 0:02:48]} 8. h3 {[%clk 0:02:52]}  Bh5 {[%clk 0:02:46]} 9. g4 {[%clk 0:02:20]}  Bg6 {[%clk 0:02:45]} 10. Nh4 {[%clk 0:02:05]}  e5 {[%clk 0:02:28]} 11. f3 {[%clk 0:02:04]}  Nc5 {[%clk 0:02:23]} 12. Nb3 {[%clk 0:02:00]}  O-O-O {[%clk 0:02:06]} 13. Ke2 {[%clk 0:01:56]}  Nfd7 {[%clk 0:02:00]} 14. Be3 {[%clk 0:01:54]}  b6 {[%clk 0:01:58]} 15. Rhd1 {[%clk 0:01:35]}  Ne6 {[%clk 0:01:28]} 16. Bc4 {[%clk 0:01:24]}  Kc7 {[%clk 0:00:58]} 17. Bxe6 {[%clk 0:01:21]}  fxe6 {[%clk 0:00:58]} 18. a4 {[%clk 0:01:18]}  Be7 {[%clk 0:00:44]} 19. Ng2 {[%clk 0:01:16]}  Nb8 {[%clk 0:00:39]} 20. Bf2 {[%clk 0:01:12]}  Rxd1 {[%clk 0:00:18]} 21. Rxd1 {[%clk 0:01:11]}  Rd8 {[%clk 0:00:19]} 22. Ra1 {[%clk 0:01:07]}  Na6 {[%clk 0:00:18]} 23. c3 {[%clk 0:01:07]}  Kb7 {[%clk 0:00:16]} 24. Ne3 {[%clk 0:01:05]}  Nc5 {[%clk 0:00:05]} 25. Nxc5+ {[%clk 0:00:57]}  Bxc5 {[%clk 0:00:05]} 26. Nc4 {[%clk 0:00:58]}  Bxf2 {[%clk 0:00:06]} 27. Kxf2 {[%clk 0:00:58]}  b5 {[%clk 0:00:06]} 28. axb5 {[%clk 0:00:57]}  cxb5 {[%clk 0:00:07]} 29. Na5+ {[%clk 0:00:57]}  Kb6 {[%clk 0:00:07]} 30. Ke3 {[%clk 0:00:56]}  Be8 {[%clk 0:00:01]} 31. b4 {[%clk 0:00:55]}  Rc8 {[%clk 0:00:01]} 32. Kd2 {[%clk 0:00:55]}  Rd8+ {[%clk 0:00:02]} 33. Kc2 {[%clk 0:00:56]}  Bc6 {[%clk 0:00:02]} 34. Nb3 {[%clk 0:00:56]}  Bb7 {[%clk 0:00:02]} 35. Nc5 {[%clk 0:00:56]}  Bc8 {[%clk 0:00:02]} 36. Nd3 {[%clk 0:00:55]} 1-0


[Site "https://www.chess.com"]

[Event "Titled Tuesday Blitz July 27 2021"]
[White "Matveeva, Olga"]
[Black "Dushyant Sharma"]
[WhiteFideId "24107018"]
[BlackFideId "25065130"]
[WhiteElo "2108"]
[BlackElo "2019"]
[Result "0-1"]
[Round "06"]
[TimeControl "180+1"]
[Date "2021.07.27"]
[WhiteClock "0:00:05"]
[BlackClock "0:01:15"]

1. d4 {[%clk 0:03:00]}  d5 {[%clk 0:02:58]} 2. c4 {[%clk 0:03:00]}  e6 {[%clk 0:02:59]} 3. Nf3 {[%clk 0:02:59]}  Be7 {[%clk 0:02:59]} 4. g3 {[%clk 0:02:58]}  Nf6 {[%clk 0:02:59]} 5. Bg2 {[%clk 0:02:58]}  O-O {[%clk 0:03:00]} 6. O-O {[%clk 0:02:58]}  dxc4 {[%clk 0:03:00]} 7. Qc2 {[%clk 0:02:58]}  c5 {[%clk 0:03:00]} 8. dxc5 {[%clk 0:02:56]}  Nc6 {[%clk 0:03:01]} 9. Qxc4 {[%clk 0:02:52]}  e5 {[%clk 0:03:01]} 10. b4 {[%clk 0:02:26]}  Be6 {[%clk 0:03:01]} 11. Qc3 {[%clk 0:02:23]}  Nd5 {[%clk 0:03:00]} 12. Qb2 {[%clk 0:02:06]}  Ndxb4 {[%clk 0:02:53]} 13. a3 {[%clk 0:02:02]}  Na6 {[%clk 0:02:41]} 14. Qxb7 {[%clk 0:01:55]}  Qc8 {[%clk 0:02:40]} 15. Qxc8 {[%clk 0:01:47]}  Raxc8 {[%clk 0:02:41]} 16. Bb2 {[%clk 0:01:42]}  f6 {[%clk 0:02:38]} 17. Rc1 {[%clk 0:01:36]}  Nxc5 {[%clk 0:02:32]} 18. Nbd2 {[%clk 0:01:35]}  Na4 {[%clk 0:02:30]} 19. Ne1 {[%clk 0:01:18]}  Nd4 {[%clk 0:02:22]} 20. Bxd4 {[%clk 0:01:15]}  exd4 {[%clk 0:02:23]} 21. Nd3 {[%clk 0:01:12]}  Nc3 {[%clk 0:02:21]} 22. Kf1 {[%clk 0:01:09]}  Bf5 {[%clk 0:02:11]} 23. Nb3 {[%clk 0:01:05]}  Rfd8 {[%clk 0:02:06]} 24. Ke1 {[%clk 0:00:51]}  Be6 {[%clk 0:01:59]} 25. Nd2 {[%clk 0:00:47]}  f5 {[%clk 0:01:54]} 26. Nf3 {[%clk 0:00:39]}  Bf6 {[%clk 0:01:54]} 27. Nfe5 {[%clk 0:00:37]}  Re8 {[%clk 0:01:47]} 28. Kd2 {[%clk 0:00:34]}  Bc4 {[%clk 0:01:42]} 29. f4 {[%clk 0:00:25]}  Bxd3 {[%clk 0:01:42]} 30. exd3 {[%clk 0:00:19]}  Bxe5 {[%clk 0:01:41]} 31. fxe5 {[%clk 0:00:20]}  Rxe5 {[%clk 0:01:41]} 32. Re1 {[%clk 0:00:19]}  Rce8 {[%clk 0:01:37]} 33. Rxe5 {[%clk 0:00:17]}  Rxe5 {[%clk 0:01:38]} 34. Re1 {[%clk 0:00:16]}  Rxe1 {[%clk 0:01:37]} 35. Kxe1 {[%clk 0:00:17]}  Kf7 {[%clk 0:01:37]} 36. Kd2 {[%clk 0:00:15]}  Nb1+ {[%clk 0:01:36]} 37. Kc2 {[%clk 0:00:14]}  Nxa3+ {[%clk 0:01:37]} 38. Kb3 {[%clk 0:00:14]}  Nb5 {[%clk 0:01:34]} 39. Kc4 {[%clk 0:00:14]}  a6 {[%clk 0:01:33]} 40. Kd5 {[%clk 0:00:10]}  Kf6 {[%clk 0:01:30]} 41. Bf3 {[%clk 0:00:08]}  g5 {[%clk 0:01:29]} 42. h4 {[%clk 0:00:07]}  h6 {[%clk 0:01:29]} 43. hxg5+ {[%clk 0:00:07]}  hxg5 {[%clk 0:01:30]} 44. Bg2 {[%clk 0:00:07]}  g4 {[%clk 0:01:26]} 45. Bf1 {[%clk 0:00:07]}  Kg5 {[%clk 0:01:24]} 46. Bg2 {[%clk 0:00:07]}  f4 {[%clk 0:01:19]} 47. gxf4+ {[%clk 0:00:07]}  Kxf4 {[%clk 0:01:20]} 48. Kc5 {[%clk 0:00:07]}  Ke3 {[%clk 0:01:15]} 49. Be4 {[%clk 0:00:06]}  Nc3 {[%clk 0:01:15]} 50. Bf5 {[%clk 0:00:05]}  g3 {[%clk 0:01:15]} 0-1


[Site "https://www.chess.com"]